bitfinex-derivatives/quotes_SOLF0:USTF0_20250720
["timestamp","ask_amount","ask_price","bid_price","bid_amount"]
[1753051875614,3.18,180.89,180.88,2.93]
[1753051875812,3.18,180.92,180.85,2.11818202]
[1753051876017,3.18,180.91,180.88,2.93]
[1753051876313,3.18,180.9,180.89,2.93]
[1753051876513,3.18,180.9,180.87,7.64378202]
[1753051876713,3.18,180.91,180.88,2.93]
[1753051876914,2.11818202,180.94,180.88,2.93]
[1753051876915,3.18,180.93,180.88,2.93]
[1753051877112,3.18,180.93,180.89,2.93]
[1753051877517,5.5244,180.92,180.89,2.93]
[1753051877812,3.18,180.93,180.9,2.93]
[1753051878006,2.11818202,180.94,180.91,2.93]
[1753051878207,3.18,180.92,180.91,2.93]
[1753051878411,3.18,180.92,180.89,5.5251]
[1753051878715,3.18,180.91,180.9,2.93]
[1753051880015,3.18,180.9,180.89,2.93]
[1753051880211,3.18,180.9,180.89,8.4552]
[1753051880715,2.11818202,180.94,180.89,8.4552]
[1753051880716,3.18,180.92,180.89,8.4552]
[1753051880917,3.18,180.91,180.9,2.93]
[1753051881518,3.18,180.93,180.89,2.93]
[1753051881722,3.18,180.93,180.91,2.93]
[1753051881921,3.18,180.95,180.92,2.93]
[1753051882116,3.18,180.94,180.89,2.11818202]
[1753051882315,3.18,180.94,180.91,2.93]
[1753051882518,3.18,180.92,180.91,2.93]
[1753051882819,2.11818202,180.98,180.91,5.5244]
[1753051883115,3.18,180.93,180.92,2.93]
[1753051883918,5.5235,180.95,180.92,2.93]
[1753051884126,3.18,180.94,180.93,2.93]
[1753051886021,3.18,180.93,180.92,2.93]
[1753051886226,2.11818202,180.96,180.9,2.93]
[1753051886428,3.18,180.95,180.9,2.93]
[1753051887120,3.18,180.94,180.9,2.93]
[1753051887325,3.18,180.94,180.89,2.93]
[1753051887525,3.18,180.94,180.9,2.93]
[1753051887726,3.18,180.92,180.91,2.93]
[1753051888826,3.11,180.94,180.89,3.16]
[1753051889127,3.11,180.94,180.91,3.16]
[1753051889527,8.6339,180.94,180.92,5.5242]
[1753051889720,3.11,180.94,180.93,3.16]
[1753051890434,2.11818202,180.98,180.93,8.684]
[1753051890629,3.11,180.97,180.94,3.16]
[1753051890829,3.11,180.95,180.94,3.16]
[1753051891826,3.11,180.97,180.92,3.16]
[1753051892329,5.5239,180.94,180.92,3.16]
[1753051892530,3.11,180.92,180.91,8.6846]
[1753051893833,0.96192385,181.0,180.9,3.16]
[1753051893834,3.11,180.91,180.9,3.16]
[1753051895628,3.11,180.91,180.9,8.6849]
[1753051895931,3.11,180.91,180.84,3.16]
[1753051896228,3.11,180.87,180.83,3.16]
[1753051896431,3.11,180.89,180.83,3.16]
[1753051896827,5.5259,180.87,180.85,3.16]
[1753051897030,2.11818202,180.86,180.81,3.16]
[1753051897332,2.11818202,180.86,180.77,373.41818202]
[1753051897535,3.11,180.87,180.8,3.16]
[1753051897838,3.11,180.87,180.8,8.6878]
[1753051898127,2.11818202,180.86,180.8,3.16]
[1753051898332,3.11,180.85,180.8,3.16]
[1753051898930,3.11,180.8,180.78,3.16]
[1753051899335,3.11,180.79,180.78,3.16]
[1753051899731,3.11,180.78,180.76,3.16]
[1753051899933,3.11,180.81,180.73,2.11818202]
[1753051900133,5.5282,180.8,180.76,5.529]
[1753051900433,3.11,180.79,180.73,3.16]
[1753051900731,8.6383,180.79,180.73,3.16]
[1753051901130,8.6383,180.79,180.76,5.529]
[1753051901131,3.11,180.79,180.76,5.529]
[1753051901335,3.11,180.79,180.77,3.16]
[1753051901534,3.11,180.79,180.78,3.16]
[1753051901836,5.5283,180.79,180.76,3.16]
[1753051902133,3.11,180.77,180.76,3.16]
[1753051902326,3.11,180.77,180.76,8.6891]
[1753051902528,2.11818202,180.84,180.75,2.11818202]
[1753051902734,3.11,180.83,180.76,3.16]
[1753051902939,3.11,180.78,180.77,3.16]
[1753051903130,3.11,180.77,180.76,3.16]
[1753051903432,3.11,180.77,180.72,255.8428345]
[1753051903633,3.11,180.75,180.72,106.22]
[1753051903932,5.5296,180.75,180.71,8.6905]
[1753051904128,3.11,180.73,180.71,8.6905]
[1753051904330,2.11818202,180.76,180.71,8.6905]
[1753051904524,3.11,180.75,180.69,8.6912]
[1753051904727,2.11818202,180.74,180.69,3.16]
[1753051904926,3.11,180.73,180.65,2.11818202]
[1753051905129,3.11,180.7,180.67,8.6917]
[1753051905333,3.11,180.7,180.63,108.35818202]
[1753051905334,3.11,180.71,180.64,3.16]
[1753051905733,3.11,180.71,180.64,5.27818202]
[1753051905933,3.11,180.71,180.65,3.16]
[1753051906239,3.11,180.72,180.65,3.16]
[1753051906736,2.11818202,180.73,180.66,3.16]
[1753051906933,3.11,180.67,180.66,3.16]
[1753051907333,3.11,180.67,180.64,3.16]
[1753051907639,3.11,180.66,180.64,3.16]
[1753051907839,2.11818202,180.81,180.64,3.16]
[1753051907840,3.11,180.65,180.64,3.16]
[1753051908143,3.11,180.67,180.63,3.16]
[1753051908336,3.11,180.67,180.65,3.16]
[1753051908640,3.11,180.72,180.66,3.16]
[1753051908935,3.11,180.68,180.62,3.16]
[1753051909540,3.11,180.65,180.58,106.26]
[1753051909740,3.11,180.65,180.61,3.16]
[1753051909941,2.11818202,180.65,180.61,3.16]
[1753051910247,2.11818202,180.65,180.58,106.26]
[1753051910248,3.11,180.64,180.58,109.42]
[1753051910541,3.11,180.62,180.59,3.16]
[1753051910740,3.11,180.62,180.6,3.16]
[1753051911143,3.11,180.61,180.6,3.16]
[1753051911342,3.11,180.64,180.58,109.42]
[1753051911546,3.11,180.62,180.56,3.16]
[1753051911938,3.11,180.71,180.55,3.16]
[1753051912144,3.11,180.65,180.59,3.16]
[1753051912539,3.11,180.65,180.63,3.16]
[1753051912737,3.11,180.64,180.63,3.16]
[1753051912942,5.5334,180.63,180.59,3.16]
[1753051913143,2.11818202,180.62,180.57,3.16]
[1753051913346,3.11,180.61,180.57,3.16]
[1753051913860,3.11,180.61,180.54,108.37818202]
[1753051914058,3.11,180.61,180.54,109.42]
[1753051914360,3.11,180.61,180.55,3.16]
[1753051914762,8.6439,180.61,180.56,5.5351]
[1753051914962,3.11,180.63,180.57,3.16]
[1753051916362,3.11,180.6,180.58,3.16]
[1753051917064,3.11,180.61,180.57,3.16]
[1753051917661,3.11,180.59,180.57,3.16]
[1753051917960,3.11,180.58,180.54,106.26]
[1753051918156,3.03,180.57,180.53,3.02]
[1753051918363,3.03,180.57,180.5,3.02]
[1753051918560,2.11818202,180.56,180.5,3.02]
[1753051918757,3.03,180.53,180.47,374.76]
[1753051918964,3.03,180.53,180.47,3.02]
[1753051919157,3.03,180.53,180.45,108.41818202]
[1753051919158,3.03,180.51,180.49,3.02]
[1753051919755,3.03,180.51,180.49,8.5574]
[1753051919961,3.03,180.52,180.51,3.02]
[1753051920156,2.11818202,180.56,180.51,3.02]
[1753051920357,3.03,180.58,180.51,2.11818202]
[1753051920565,3.03,180.64,180.58,3.02]
[1753051921061,3.03,180.67,180.6,3.02]
[1753051921268,371.98,180.69,180.61,3.02]
[1753051921269,3.03,180.69,180.61,3.02]
[1753051921562,3.03,180.67,180.61,3.02]
[1753051921866,208.60207646,180.72,180.63,3.46034282]
[1753051922060,3.03,180.68,180.66,3.02]
[1753051922564,3.03,180.71,180.67,3.02]
[1753051922765,3.03,180.71,180.68,3.02]
[1753051922965,3.03,180.69,180.68,3.02]
[1753051923464,3.03,180.71,180.66,3.46034282]
[1753051923866,3.03,180.71,180.7,3.02]
[1753051924067,3.03,180.73,180.7,3.02]
[1753051924268,3.03,180.73,180.66,3.46034282]
[1753051924468,3.03,180.73,180.72,3.02]
[1753051924760,375.52034282,180.79,180.66,3.46034282]
[1753051924761,3.03,180.72,180.67,5.5319]
[1753051924962,372.06,180.79,180.71,3.02]
[1753051925158,3.03,180.74,180.71,3.02]
[1753051925362,3.03,180.74,180.72,3.02]
[1753051925561,3.46034282,180.8,180.69,3.02]
[1753051925771,3.46034282,180.8,180.71,8.5505]
[1753051925772,5.5296,180.75,180.71,8.5505]
[1753051926065,5.5296,180.75,180.74,3.02]
[1753051926463,3.03,180.73,180.7,3.02]
[1753051926861,3.03,180.76,180.72,3.02]
[1753051927060,3.03,180.74,180.72,3.02]
[1753051928067,3.03,180.76,180.73,3.02]
[1753051928268,8.5603,180.73,180.7,3.02]
[1753051928463,3.03,180.72,180.7,3.02]
[1753051928666,3.03,180.72,180.67,3.46034282]
[1753051928667,3.03,180.72,180.68,3.02]
[1753051929269,3.03,180.7,180.67,3.02]
[1753051929467,3.03,180.73,180.65,3.02]
[1753051929667,5.5314,180.69,180.65,3.02]
[1753051929974,8.5614,180.69,180.67,3.02]
[1753051930170,3.03,180.68,180.65,3.02]
[1753051930371,3.03,180.71,180.63,481.32]
[1753051930572,3.03,180.69,180.63,109.3]
[1753051930766,3.03,180.66,180.63,109.3]
[1753051930975,3.03,180.65,180.63,109.3]
[1753051931274,5.5319,180.68,180.64,3.02]
[1753051931473,3.46034282,180.7,180.64,3.02]
[1753051931672,3.03,180.68,180.65,3.02]
[1753051931864,3.03,180.68,180.67,3.02]
[1753051932175,3.03,180.68,180.66,3.02]
[1753051932674,3.46034282,180.72,180.63,106.28]
[1753051932870,3.03,180.66,180.63,109.3]
[1753051933074,3.03,180.69,180.63,109.3]
[1753051933274,3.46034282,180.7,180.64,3.02]
[1753051933468,6.49034282,180.7,180.64,3.02]
[1753051933664,11.0559,180.81,180.63,106.28]
[1753051933665,5.5319,180.68,180.63,111.8131]
[1753051933865,3.03,180.67,180.65,3.02]
[1753051934174,3.03,180.71,180.64,3.02]
[1753051934372,5.5311,180.7,180.65,5.5323]
[1753051934571,3.03,180.71,180.64,3.02]
[1753051935271,3.92057152,180.7,180.64,3.02]
[1753051935471,3.03,180.69,180.63,109.74034282]
[1753051935669,3.03,180.73,180.68,3.02]
[1753051935865,3.03,180.71,180.65,5.5325]
[1753051936065,3.92328055,180.7,180.64,3.02]
[1753051936270,3.03,180.68,180.65,3.02]
[1753051936471,3.03,180.67,180.65,3.02]
[1753051936681,3.46034282,180.78,180.66,3.02]
[1753051936879,3.03,180.76,180.69,3.02]
[1753051937074,3.03,180.74,180.69,8.5511]
[1753051937376,6.96197472,180.73,180.69,5.5311]
[1753051937581,3.93197472,180.72,180.66,3.46034282]
[1753051937770,3.03,180.69,180.64,3.46034282]
[1753051937966,3.03,180.71,180.65,3.02]
[1753051938173,3.93313571,180.7,180.67,3.02]
[1753051938379,3.03,180.75,180.67,3.02]
[1753051938671,3.03,180.7,180.64,3.46034282]
[1753051938871,3.46034282,180.74,180.69,3.02]
[1753051939072,3.03,180.71,180.69,3.02]
[1753051939271,3.03,180.71,180.64,3.46034282]
[1753051939272,3.03,180.73,180.65,3.02]
[1753051939475,3.46034282,180.7,180.61,3.02]
[1753051939778,5.5324,180.66,180.62,5.5334]
[1753051939978,3.03,180.69,180.61,3.02]
[1753051940367,3.03,180.69,180.63,3.02]
[1753051941272,3.03,180.69,180.6,3.46034282]
[1753051941273,3.03,180.68,180.6,3.46034282]
[1753051941577,3.03,180.68,180.66,3.02]
[1753051941777,3.03,180.72,180.64,3.46034282]
[1753051941974,3.03,180.72,180.65,3.02]
[1753051942468,5.531,180.7,180.66,5.5322]
[1753051942671,8.561,180.7,180.67,3.02]
[1753051942872,3.03,180.7,180.64,3.46034282]
[1753051943067,3.03,180.7,180.69,3.02]
[1753051943272,3.03,180.74,180.61,4.59477423]
[1753051943575,3.03,180.71,180.63,3.02]
[1753051943879,3.03,180.73,180.67,3.02]
[1753051944579,8.5611,180.7,180.66,5.5321]
[1753051944779,8.5611,180.7,180.68,3.02]
[1753051944968,8.5611,180.7,180.64,3.46034282]
[1753051945172,5.5308,180.71,180.69,3.02]
[1753051945373,3.03,180.72,180.7,3.02]
[1753051945570,3.03,180.72,180.71,3.02]
[1753051945779,3.03,180.7,180.62,4.59477423]
[1753051945974,3.03,180.7,180.62,3.02]
[1753051946172,6.61645192,180.69,180.62,3.02]
[1753051946378,3.03,180.67,180.58,3.02]
[1753051946576,3.03,180.67,180.61,3.02]
[1753051946874,3.03,180.69,180.66,3.02]
[1753051947178,3.03,180.68,180.67,3.02]
[1753051947575,8.5617,180.68,180.65,3.02]
[1753051947878,8.5617,180.68,180.66,3.02]
[1753051948378,8.5617,180.68,180.67,3.04]
[1753051948874,8.5115,180.69,180.67,3.04]
[1753051949075,2.98,180.68,180.67,3.04]
[1753051949479,8.5116,180.68,180.66,3.04]
[1753051950678,8.5119,180.67,180.61,3.04]
[1753051950875,2.98,180.67,180.61,3.04]
[1753051951271,2.98,180.66,180.61,3.04]
[1753051951783,2.98,180.66,180.58,8.05511705]
[1753051951784,8.5131,180.64,180.62,3.04]
[1753051951973,8.5131,180.64,180.58,3.46034282]
[1753051951974,2.98,180.66,180.63,3.04]
[1753051952178,2.98,180.66,180.58,3.46034282]
[1753051952179,5.5318,180.68,180.65,5.5324]
[1753051952484,2.98,180.71,180.63,3.04]
[1753051952677,2.98,180.71,180.62,3.04]
[1753051953275,5.5323,180.66,180.62,3.04]
[1753051953473,8.5123,180.66,180.62,3.04]
[1753051953680,2.98,180.68,180.61,3.04]
[1753051953875,8.5135,180.62,180.59,5.5343]
[1753051954079,3.46034282,180.66,180.58,3.04]
[1753051954374,5.5334,180.63,180.6,5.5338]
[1753051954579,8.5134,180.63,180.58,3.04]
[1753051954977,3.46034282,180.66,180.58,3.04]
[1753051955183,2.98,180.65,180.58,3.04]
[1753051955486,5.5329,180.64,180.6,5.5341]
[1753051955686,8.5129,180.64,180.62,3.04]
[1753051956185,2.98,180.64,180.63,3.04]
[1753051956384,3.46034282,180.68,180.63,3.04]
[1753051956579,2.98,180.65,180.63,3.04]
[1753051956884,5.5329,180.64,180.63,3.04]
[1753051957082,2.98,180.65,180.63,3.04]
[1753051957285,5.5324,180.66,180.64,3.04]
[1753051957484,2.98,180.7,180.62,3.04]
[1753051958083,5.5328,180.65,180.62,3.04]
[1753051958284,2.98,180.64,180.62,8.5734]
[1753051958484,2.98,180.7,180.6,3.04]
[1753051958680,2.98,180.7,180.63,3.04]
[1753051959088,3.46034282,180.73,180.66,5.5321]
[1753051959283,8.5114,180.69,180.67,3.04]
[1753051959680,17.12418206,180.8,180.64,3.46034282]
[1753051959681,5.531,180.71,180.64,3.46034282]
[1753051959883,2.98,180.71,180.69,3.04]
[1753051960184,8.5109,180.71,180.7,3.04]
[1753051960383,2.98,180.73,180.66,3.46034282]
[1753051960589,2.98,180.73,180.71,3.04]
[1753051960787,3.46034282,180.77,180.71,3.04]
[1753051960984,2.98,180.76,180.69,3.04]
[1753051961584,2.98,180.76,180.69,8.5711]
[1753051961789,2.98,180.76,180.69,3.04]
[1753051962187,8.51,180.74,180.71,8.5707]
[1753051962385,2.98,180.74,180.73,3.04]
[1753051962688,8.5094,180.76,180.74,3.04]
[1753051962879,8.5094,180.76,180.73,5.5301]
[1753051963082,2.98,180.76,180.7,3.46034282]
[1753051963282,2.98,180.8,180.73,3.04]
[1753051964993,5.5297,180.75,180.73,3.04]
[1753051965285,2.98,180.74,180.71,3.04]
[1753051965590,2.98,180.73,180.71,8.5707]
[1753051965789,2.98,180.73,180.72,3.04]
[1753051966688,3.46034282,180.79,180.7,3.04]
[1753051966886,2.98,180.71,180.7,3.04]
[1753051967085,2.98,180.71,180.67,3.04]
[1753051967381,2.98,180.72,180.64,3.04]
[1753051967781,2.98,180.66,180.64,3.04]
[1753051968185,2.98,180.69,180.61,3.04]
[1753051968791,5.5331,180.64,180.61,8.5738]
[1753051968991,2.98,180.64,180.62,3.04]
[1753051969192,2.98,180.64,180.6,106.2]
[1753051969391,3.46034282,180.69,180.62,5.5334]
[1753051969590,2.98,180.67,180.6,106.2]
[1753051969787,2.98,180.67,180.61,3.04]
[1753051969992,8.5122,180.67,180.63,5.5329]
[1753051970292,8.5122,180.67,180.65,3.04]
[1753051970486,5.5323,180.66,180.65,3.04]
[1753051970692,5.5323,180.66,180.63,8.5729]
[1753051970892,2.98,180.65,180.63,3.04]
[1753051971094,2.98,180.65,180.61,3.46034282]
[1753051971095,8.512,180.67,180.62,3.04]
[1753051971291,2.98,180.66,180.62,3.04]
[1753051971489,2.98,180.66,180.64,3.04]
[1753051971693,2.98,180.66,180.65,3.04]
[1753051971989,2.98,180.66,180.61,3.46034282]
[1753051971990,5.532,180.67,180.66,3.04]
[1753051972493,2.98,180.67,180.66,3.04]
[1753051972892,3.46034282,180.71,180.64,5.5327]
[1753051973094,2.98,180.65,180.64,3.04]
[1753051973288,2.98,180.68,180.61,3.04]
[1753051973494,5.5328,180.65,180.61,8.5736]
[1753051973690,2.98,180.64,180.62,3.04]
[1753051973885,2.98,180.64,180.63,3.04]
[1753051974091,2.98,180.63,180.61,3.04]
[1753051974402,3.46034282,180.65,180.58,3.04]
[1753051974697,2.98,180.64,180.56,3.04]
[1753051975493,2.98,180.64,180.57,5.535]
[1753051975695,2.98,180.64,180.57,3.04]
[1753051975989,2.98,180.64,180.54,8.05511705]
[1753051976197,3.46034282,180.73,180.55,3.04]
[1753051976198,2.98,180.61,180.55,3.04]
[1753051976893,5.5342,180.6,180.56,5.5351]
[1753051977089,2.98,180.58,180.53,371.92]
[1753051977393,2.98,180.56,180.54,3.04]
[1753051977591,2.98,180.56,180.52,106.2]
[1753051977794,3.46034282,180.6,180.55,3.04]
[1753051977990,2.98,180.57,180.55,3.04]
[1753051979492,8.515,180.57,180.55,3.04]
[1753051979994,3.19,180.56,180.52,106.2]
[1753051980194,3.46034282,180.58,180.52,109.29]
[1753051980393,6.65034282,180.58,180.53,3.09]
[1753051980600,3.19,180.57,180.54,3.09]
[1753051980896,3.19,180.56,180.54,3.09]
[1753051981091,5.5356,180.55,180.54,3.09]
[1753051981393,3.19,180.59,180.52,106.2]
[1753051981596,5.5337,180.62,180.58,8.6245]
[1753051981896,3.19,180.62,180.56,3.46034282]
[1753051982093,3.19,180.64,180.61,3.09]
[1753051982295,3.19,180.63,180.56,3.46034282]
[1753051982496,3.19,180.63,180.57,3.09]
[1753051982696,5.5343,180.6,180.57,5.5349]
[1753051982901,8.7243,180.6,180.58,3.09]
[1753051983295,5.5338,180.61,180.58,5.5347]
[1753051983493,3.19,180.62,180.6,3.09]
[1753051983895,3.19,180.62,180.61,3.09]
[1753051985094,3.19,180.61,180.59,3.09]
[1753051985298,3.19,180.6,180.59,3.09]
[1753051986396,3.19,180.6,180.55,106.38]
[1753051986597,3.19,180.61,180.55,3.09]
[1753051986799,3.19,180.58,180.52,3.09]
[1753051987095,3.19,180.56,180.54,3.09]
[1753051987799,3.19,180.56,180.55,3.09]
[1753051988101,3.19,180.58,180.5,106.38]
[1753051988301,3.19,180.61,180.52,3.46034282]
[1753051988598,3.19,180.61,180.53,3.09]
[1753051988897,5.5347,180.58,180.55,5.5354]
[1753051989090,3.19,180.6,180.53,3.09]
[1753051989299,3.19,180.6,180.5,110.97477423]
[1753051989300,6.06808206,180.74,180.59,3.09]
[1753051989497,3.19,180.83,180.67,3.09]
[1753051989793,3.19,180.76,180.67,3.09]
[1753051989994,3.19,180.72,180.66,3.09]
[1753051990499,3.19,180.71,180.68,3.09]
[1753051990694,3.19,180.71,180.69,3.09]
[1753051991598,3.19,180.7,180.67,3.46034282]
[1753051991797,3.19,180.7,180.68,3.09]
[1753051992198,3.19,180.74,180.65,3.09]
[1753051992596,108.7,180.83,180.69,3.09]
[1753051992597,3.19,180.78,180.69,3.09]
[1753051992799,3.19,180.78,180.71,3.09]
[1753051992995,3.19,180.76,180.7,3.46034282]
[1753051993197,3.19,180.74,180.72,3.09]
[1753051993395,3.19,180.79,180.73,3.09]
[1753051993600,3.19,180.78,180.76,3.09]
[1753051993801,3.19,180.84,180.76,6.55034282]
[1753051994009,3.19,180.87,180.81,3.09]
[1753051994203,3.19,180.87,180.82,5.5273]
[1753051994503,3.19,180.87,180.81,3.09]
[1753051994504,3.19,180.85,180.8,3.09]
[1753051994700,3.19,180.83,180.8,3.09]
[1753051994895,3.19,180.83,180.81,3.09]
[1753051995099,3.19,180.88,180.8,3.09]
[1753051995297,5.5263,180.86,180.81,3.46034282]
[1753051995500,3.19,180.89,180.82,3.09]
[1753051995910,5.5256,180.88,180.83,3.46034282]
[1753051996108,3.19,180.87,180.84,3.09]
[1753051996608,3.19,180.86,180.84,3.09]
[1753051997709,3.19,180.9,180.82,3.09]
[1753051998408,3.46034282,180.91,180.83,3.09]
[1753051998409,3.19,180.85,180.83,3.09]
[1753051998706,3.19,180.84,180.82,3.09]
[1753051998909,8.7174,180.82,180.8,3.09]
[1753051999103,3.19,180.82,180.8,3.09]
[1753051999298,3.19,180.82,180.78,3.46034282]
[1753051999497,3.19,180.84,180.81,3.09]
[1753051999698,3.19,180.83,180.81,3.09]
[1753051999901,3.19,180.82,180.79,3.09]
[1753052000101,3.19,180.84,180.81,3.09]
[1753052000502,3.19,180.83,180.81,3.09]
[1753052000705,3.19,180.85,180.8,3.46034282]
[1753052000899,3.46034282,180.91,180.82,3.09]
[1753052001103,3.19,180.88,180.82,3.09]
[1753052001913,8.7166,180.85,180.83,3.09]
[1753052002417,3.19,180.85,180.83,3.09]
[1753052003210,3.19,180.9,180.84,3.09]
[1753052005712,3.19,180.86,180.84,3.09]
[1753052006113,3.19,180.85,180.76,3.09]
[1753052006409,3.19,180.85,180.83,3.09]
[1753052007011,3.19,180.85,180.82,5.5273]
[1753052007012,3.19,180.85,180.84,3.09]
[1753052007210,5.5259,180.87,180.84,3.09]
[1753052007416,3.19,180.87,180.85,3.09]
[1753052007716,3.46034282,180.93,180.83,3.46034282]
[1753052007914,3.19,180.92,180.84,3.09]
[1753052008214,5.5258,180.88,180.84,3.09]
[1753052008414,3.46034282,180.93,180.85,2.96]
[1753052008612,3.46034282,180.91,180.83,2.96]
[1753052008813,5.5264,180.86,180.83,2.96]
[1753052009013,3.12,180.85,180.83,2.96]
[1753052009410,3.12,180.83,180.81,3.46034282]
[1753052009611,3.12,180.82,180.8,2.96]
[1753052009816,3.12,180.82,180.81,2.96]
[1753052010014,5.527,180.84,180.81,2.96]
[1753052010212,3.12,180.83,180.81,2.96]
[1753052010414,3.12,180.9,180.81,3.46034282]
[1753052010715,3.12,180.9,180.82,8.4871]
[1753052011307,3.12,180.9,180.84,2.96]
[1753052011719,3.12,180.9,180.84,8.4867]
[1753052011913,3.12,180.9,180.84,2.96]
[1753052012619,3.12,180.94,180.85,2.96]
[1753052012822,3.46034282,180.93,180.85,2.96]
[1753052013009,8.6461,180.86,180.85,2.96]
[1753052013213,3.12,180.86,180.85,2.96]
[1753052013810,3.12,180.86,180.84,2.96]
[1753052014010,3.12,180.83,180.82,6.42034282]
[1753052014319,3.12,180.82,180.81,2.96]
[1753052015118,3.12,180.85,180.81,2.96]
[1753052015312,3.46034282,180.9,180.81,2.96]
[1753052015519,3.12,180.89,180.81,2.96]
[1753052017422,3.12,180.89,180.79,3.46034282]
[1753052017617,3.12,180.87,180.78,2.96]
[1753052018017,3.12,180.87,180.8,2.96]
[1753052018928,3.12,180.94,180.81,2.96]
[1753052019121,11.0471,180.95,180.81,2.96]
[1753052019122,3.12,180.91,180.81,2.96]
[1753052019624,3.12,180.91,180.82,5.5271]
[1753052019819,3.12,180.91,180.83,2.96]
[1753052020021,5.5261,180.87,180.83,8.487]
[1753052020228,11.0471,180.95,180.84,2.96]
[1753052020229,3.12,180.89,180.84,2.96]
[1753052020824,3.12,180.88,180.84,2.96]
[1753052021023,3.46034282,180.94,180.83,3.46034282]
[1753052021224,3.12,180.93,180.83,6.42034282]
[1753052021728,5.5263,180.86,180.83,6.42034282]
[1753052021928,3.12,180.85,180.84,2.96]
[1753052023030,3.46034282,180.85,180.78,2.96]
[1753052023329,5.5291,180.77,180.75,2.26603036]
[1753052023531,3.12,180.81,180.74,2.96]
[1753052023731,3.12,180.81,180.75,2.26676588]
[1753052023931,5.5291,180.77,180.76,2.26676588]
[1753052024134,8.6491,180.77,180.76,2.26676588]
[1753052024832,3.12,180.81,180.73,2.96]
[1753052025037,3.12,180.81,180.74,2.26818662]
[1753052025233,3.12,180.81,180.75,2.26818662]
[1753052025530,5.5295,180.75,180.74,2.96]
[1753052025734,8.6495,180.75,180.74,2.26863696]
[1753052025928,5.5298,180.74,180.73,2.96]
[1753052026125,8.6498,180.74,180.73,2.96]
[1753052026332,3.12,180.78,180.73,2.96]
[1753052026534,3.12,180.78,180.74,2.96]
[1753052026732,3.12,180.75,180.7,372.06]
[1753052027030,3.12,180.73,180.72,2.96]
[1753052027333,5.5303,180.73,180.69,5.5313]
[1753052027526,3.46034282,180.73,180.66,2.96]
[1753052027732,3.46034282,180.73,180.67,6.563463]